fUST/lending_fUST_20240902
["ID","MTS","AMOUNT","RATE_DAILY","PERIOD"]
[336951068,1725261045349,-500.0,0.00026301,2]
[336951069,1725261045358,-500.0,0.00026301,2]
[336951070,1725261045368,-500.0,0.00026301,2]
[336951071,1725261045377,-350.6629984,0.00026301,2]
[336951072,1725261045387,-306.7689583,0.00026301,2]
[336951073,1725261045397,-500.0,0.00026301,2]
[336951074,1725261045406,-2550.71,0.00026301,2]
[336951075,1725261045415,-500.0,0.00026301,2]
[336951076,1725261045425,-500.0,0.00026301,2]
[336951077,1725261045435,-514.94,0.00026301,2]
[336951078,1725261045444,-826.3,0.00026301,2]
[336951079,1725261045454,-525.66,0.00026301,2]
[336951080,1725261045466,-500.0,0.00026301,2]
[336951081,1725261045475,-500.0,0.00026301,2]
[336951082,1725261045486,-500.0,0.00026301,2]
[336951083,1725261045498,-597.97,0.00026301,2]
[336951084,1725261045508,-500.0,0.00026301,2]
[336951085,1725261045518,-500.0,0.00026301,2]
[336951086,1725261045528,-151.0,0.00026301,7]
[336951087,1725261045538,-864.86,0.00026301,2]
[336951088,1725261045548,-700.25,0.00026301,2]
[336951089,1725261045559,-668.81,0.00026301,2]
[336951090,1725261045569,-602.39,0.00026301,2]
[336951091,1725261045579,-500.0,0.00026301,2]
[336951092,1725261045589,-689.41,0.00026301,2]
[336951093,1725261045598,-500.0,0.00026301,2]
[336951094,1725261045608,-500.0,0.00026301,2]
[336951095,1725261045618,-500.0,0.00026301,2]
[336951096,1725261045631,-500.0,0.00026301,2]
[336951097,1725261045641,-1380.87,0.00026301,2]
[336951098,1725261045651,-500.0,0.00026301,2]
[336951099,1725261045661,-520.65,0.00026301,2]
[336951100,1725261045671,-500.0,0.00026301,2]
[336951101,1725261045680,-823.78,0.00026301,2]
[336951102,1725261045689,-527.21,0.00026301,2]
[336951103,1725261045699,-929.36,0.00026301,2]
[336951104,1725261045711,-950.17,0.00026301,2]
[336951105,1725261045721,-500.0,0.00026301,2]
[336951106,1725261045731,-1343.0,0.00026301,2]
[336951107,1725261045741,-1407.98,0.00026301,2]
[336951108,1725261045751,-500.0,0.00026301,2]
[336951109,1725261045760,-500.0,0.00026301,2]
[336951110,1725261045770,-999.88,0.00026301,2]
[336951111,1725261045780,-500.0,0.00026301,2]
[336951112,1725261045791,-500.0,0.00026301,2]
[336951113,1725261045800,-603.67,0.00026301,2]
[336951114,1725261045811,-1935.93,0.00026301,2]
[336951115,1725261045821,-704.48,0.00026301,2]
[336951116,1725261045830,-9485.33,0.00026301,2]
[336951117,1725261045841,-960.96,0.00026301,2]
[336951118,1725261045851,-500.0,0.00026301,2]
[336951119,1725261045862,-1205.64,0.00026301,2]
[336951120,1725261045872,-500.0,0.00026301,2]
[336951122,1725261045882,-500.0,0.00026301,2]
[336951123,1725261045892,-549.25,0.00026301,2]
[336951124,1725261045902,-1596.2,0.00026301,2]
[336951125,1725261045911,-500.0,0.00026301,2]
[336951126,1725261045920,-2069.72,0.00026301,2]
[336951127,1725261045930,-729.04,0.00026301,2]
[336951128,1725261045940,-783.37,0.00026301,2]
[336951129,1725261045949,-500.0,0.00026301,2]
[336951130,1725261045960,-1246.39,0.00026301,2]
[336951131,1725261045970,-500.0,0.00026301,2]
[336951132,1725261045979,-500.0,0.00026301,2]
[336951133,1725261045989,-1094.2,0.00026301,2]
[336951134,1725261045998,-918.1,0.00026301,2]
[336951135,1725261046007,-1026.81,0.00026301,2]
[336951136,1725261046017,-597.63,0.00026301,2]
[336951137,1725261046026,-1151.54,0.00026301,2]
[336951138,1725261046036,-500.0,0.00026301,2]
[336951139,1725261046045,-1257.05,0.00026301,2]
[336951140,1725261046055,-935.08,0.00026301,2]
[336951141,1725261046065,-3722.97,0.00026301,2]
[336951142,1725261046074,-1899.94,0.00026301,2]
[336951143,1725261046083,-1356.52,0.00026301,2]
[336951144,1725261046092,-500.0,0.00026301,2]
[336951145,1725261046102,-673.9,0.00026301,2]
[336951146,1725261046111,-1548.67,0.00026301,2]
[336951147,1725261046120,-1004.78,0.00026301,2]
[336951148,1725261046130,-500.0,0.00026301,2]
[336951149,1725261046139,-500.0,0.00026301,2]
[336951150,1725261046150,-1196.41,0.00026301,2]
[336951151,1725261046160,-820.74,0.00026301,2]
[336951152,1725261046169,-986.49,0.00026301,2]
[336951153,1725261046179,-989.14,0.00026301,2]
[336951154,1725261046188,-772.1,0.00026301,2]
[336951155,1725261046197,-1070.89,0.00026301,2]
[336951156,1725261046206,-809.06,0.00026301,2]
[336951157,1725261046215,-500.0,0.00026301,2]
[336951158,1725261046226,-1274.85,0.00026301,2]
[336951159,1725261046237,-1621.44,0.00026301,2]
[336951160,1725261046247,-537.71,0.00026301,2]
[336951161,1725261046256,-500.0,0.00026301,2]
[336951162,1725261046265,-500.0,0.00026301,2]
[336951163,1725261046274,-500.0,0.00026301,2]
[336951164,1725261046283,-718.55,0.00026301,2]
[336951165,1725261046293,-5942.41,0.00026301,2]
[336951166,1725261046302,-1295.65,0.00026301,2]
[336951167,1725261046311,-570.39,0.00026301,2]
[336951168,1725261046320,-1140.34,0.00026301,2]
[336951169,1725261046330,-500.0,0.00026301,2]
[336951170,1725261046339,-1150.84,0.00026301,2]
[336951171,1725261046348,-1100.3,0.00026301,2]
[336951172,1725261046357,-1392.74,0.00026301,2]
[336951173,1725261046366,-596.01,0.00026301,2]
[336951174,1725261046376,-652.95,0.00026301,2]
[336951175,1725261046385,-500.0,0.00026301,2]
[336951176,1725261046395,-500.0,0.00026301,2]
[336951177,1725261046404,-970.03,0.00026301,2]
[336951178,1725261046414,-1032.57,0.00026301,2]
[336951179,1725261046423,-2241.47,0.00026301,2]
[336951180,1725261046432,-353.68500071,0.00026301,2]
[336951181,1725261046442,-6424.76,0.00026301,2]
[336951182,1725261046452,-922.8,0.00026301,2]
[336951183,1725261046462,-1111.61,0.00026301,2]
[336951184,1725261046472,-500.0,0.00026301,2]
[336951185,1725261046481,-2689.12,0.00026301,2]
[336951186,1725261046491,-1668.35,0.00026301,2]
[336951187,1725261046501,-500.0,0.00026301,2]
[336951188,1725261046510,-1495.1,0.00026301,2]
[336951189,1725261046521,-590.61,0.00026301,2]
[336951190,1725261046530,-500.0,0.00026301,2]
[336951191,1725261046539,-151.0,0.00026342,3]
[336951192,1725261046549,-1360.52,0.000264,14]
[336951193,1725261046560,-2060.92,0.000264,7]
[336951194,1725261046570,-1500.0,0.00026419,2]
[336951195,1725261046579,-1500.0,0.00026419,2]
[336951196,1725261046589,-600.0,0.0002646,2]
[336951197,1725261046598,-155.3328234,0.00026478,2]
[336951198,1725261046607,-151.0,0.00026507,3]
[336951199,1725261046616,-2500.0,0.0002654,2]
[336951200,1725261046626,-2500.0,0.00026549,2]
[336951201,1725261046639,-155.4282264,0.00026549,2]
[336951202,1725261046650,-153.0,0.00026549,2]
[336951203,1725261046661,-153.0,0.00026549,2]
[336951204,1725261046670,-153.0,0.00026549,2]
[336951205,1725261046680,-2500.0,0.00026557,2]
[336951206,1725261046689,-2500.0,0.00026566,2]
[336951207,1725261046700,-151.0,0.00026574,7]
[336951208,1725261046712,-2500.0,0.00026575,2]
[336951209,1725261046724,-1722.13792376,0.00026575,2]
[336951210,1725261046735,-500.0,0.00026575,2]
[336951211,1725261046744,-500.0,0.00026575,2]
[336951212,1725261046754,-500.0,0.00026575,2]
[336951213,1725261046764,-500.0,0.00026575,2]
[336951214,1725261046774,-243.13613408,0.00026575,2]
[336951215,1725261046784,-500.0,0.00026575,2]
[336951216,1725261046793,-560.82,0.00026575,2]
[336951217,1725261046803,-500.0,0.00026575,2]
[336951218,1725261046812,-500.0,0.00026575,2]
[336951219,1725261046824,-805.5,0.00026575,2]
[336951220,1725261046836,-523.29073008,0.00026575,2]
[336951221,1725261046846,-602.31,0.00026575,2]
[336951222,1725261046856,-500.0,0.00026575,2]
[336951223,1725261046865,-158.45324469,0.00026575,2]
[336951224,1725261046875,-500.0,0.00026575,2]
[336951225,1725261046884,-500.0,0.00026575,2]
[336951226,1725261046894,-500.0,0.00026575,2]
[336951227,1725261046903,-460.58161398,0.00026575,2]
[336951228,1725261046913,-2550.71,0.00026575,2]
[336951229,1725261046922,-500.0,0.00026575,2]
[336951230,1725261046931,-500.0,0.00026575,2]
[336951231,1725261046940,-514.94,0.00026575,2]
[336951232,1725261046950,-826.3,0.00026575,2]
[336951233,1725261046960,-525.66,0.00026575,2]
[336951234,1725261046972,-500.0,0.00026575,2]
[336951235,1725261046981,-500.0,0.00026575,2]
[336951236,1725261046990,-500.0,0.00026575,2]
[336951237,1725261046999,-597.97,0.00026575,2]
[336951238,1725261047009,-500.0,0.00026575,2]
[336951239,1725261047017,-500.0,0.00026575,2]
[336951240,1725261047027,-864.86,0.00026575,2]
[336951241,1725261047036,-700.25,0.00026575,2]
[336951242,1725261047045,-668.81,0.00026575,2]
[336951243,1725261047054,-602.39,0.00026575,2]
[336951244,1725261047064,-500.0,0.00026575,2]
[336951245,1725261047073,-689.41,0.00026575,2]
[336951246,1725261047082,-500.0,0.00026575,2]
[336951247,1725261047092,-500.0,0.00026575,2]
[336951248,1725261047101,-500.0,0.00026575,2]
[336951249,1725261047110,-151.0,0.00026575,7]
[336951250,1725261047119,-500.0,0.00026575,2]
[336951251,1725261047129,-1380.87,0.00026575,2]
[336951252,1725261047140,-500.0,0.00026575,2]
[336951253,1725261047150,-520.65,0.00026575,2]
[336951254,1725261047161,-500.0,0.00026575,2]
[336951255,1725261047169,-823.78,0.00026575,2]
[336951256,1725261047179,-527.21,0.00026575,2]
[336951257,1725261047188,-929.36,0.00026575,2]
[336951258,1725261047197,-203.693301,0.00026575,7]
[336951259,1725261047207,-950.17,0.00026575,2]
[336951260,1725261047217,-203.693301,0.00026575,7]
[336951261,1725261047226,-500.0,0.00026575,2]
[336951262,1725261047236,-1343.0,0.00026575,2]
[336951263,1725261047245,-1407.98,0.00026575,2]
[336951264,1725261047256,-500.0,0.00026575,2]
[336951265,1725261047267,-500.0,0.00026575,2]
[336951266,1725261047276,-999.88,0.00026575,2]
[336951267,1725261047285,-500.0,0.00026575,2]
[336951268,1725261047294,-500.0,0.00026575,2]
[336951269,1725261047304,-603.67,0.00026575,2]
[336951270,1725261047314,-1935.93,0.00026575,2]
[336951271,1725261047323,-704.48,0.00026575,2]
[336951272,1725261047332,-9485.33,0.00026575,2]
[336951273,1725261047342,-960.96,0.00026575,2]
[336951274,1725261047352,-500.0,0.00026575,2]
[336951275,1725261047361,-1205.64,0.00026575,2]
[336951276,1725261047370,-500.0,0.00026575,2]
[336951277,1725261047379,-500.0,0.00026575,2]
[336951278,1725261047388,-549.25,0.00026575,2]
[336951279,1725261047397,-1596.2,0.00026575,2]
[336951280,1725261047407,-500.0,0.00026575,2]
[336951281,1725261047416,-2069.72,0.00026575,2]
[336951282,1725261047426,-729.04,0.00026575,2]
[336951283,1725261047438,-783.37,0.00026575,2]
[336951284,1725261047448,-500.0,0.00026575,2]
[336951285,1725261047458,-1246.39,0.00026575,2]
[336951286,1725261047467,-500.0,0.00026575,2]
[336951287,1725261047476,-500.0,0.00026575,2]
[336951288,1725261047486,-1094.2,0.00026575,2]
[336951289,1725261047495,-918.1,0.00026575,2]
[336951290,1725261047504,-1026.81,0.00026575,2]
[336951291,1725261047513,-597.63,0.00026575,2]
[336951292,1725261047523,-1151.54,0.00026575,2]
[336951293,1725261047532,-500.0,0.00026575,2]
[336951294,1725261047542,-1257.05,0.00026575,2]
[336951295,1725261047562,-935.08,0.00026575,2]
[336951296,1725261047575,-3722.97,0.00026575,2]
[336951297,1725261047585,-1899.94,0.00026575,2]
[336951298,1725261047594,-1356.52,0.00026575,2]
[336951299,1725261047604,-500.0,0.00026575,2]
[336951300,1725261047614,-673.9,0.00026575,2]
[336951301,1725261047624,-1004.78,0.00026575,2]
[336951302,1725261047638,-1548.67,0.00026575,2]
[336951303,1725261047649,-500.0,0.00026575,2]
[336951304,1725261047659,-500.0,0.00026575,2]
[336951305,1725261047668,-1196.41,0.00026575,2]
[336951306,1725261047678,-820.74,0.00026575,2]
[336951307,1725261047688,-986.49,0.00026575,2]
[336951308,1725261047697,-989.14,0.00026575,2]
[336951309,1725261047708,-772.1,0.00026575,2]
[336951310,1725261047718,-1070.89,0.00026575,2]
[336951311,1725261047728,-809.06,0.00026575,2]
[336951312,1725261047738,-500.0,0.00026575,2]
[336951313,1725261047749,-1274.85,0.00026575,2]
[336951314,1725261047758,-1621.44,0.00026575,2]
[336951315,1725261047768,-537.71,0.00026575,2]
[336951316,1725261047777,-500.0,0.00026575,2]
[336951317,1725261047787,-500.0,0.00026575,2]
[336951318,1725261047796,-500.0,0.00026575,2]
[336951319,1725261047805,-718.55,0.00026575,2]
[336951320,1725261047815,-5942.41,0.00026575,2]
[336951321,1725261047824,-1295.65,0.00026575,2]
[336951322,1725261047833,-570.39,0.00026575,2]
[336951323,1725261047843,-1140.34,0.00026575,2]
[336951324,1725261047853,-500.0,0.00026575,2]
[336951325,1725261047863,-1150.84,0.00026575,2]
[336951326,1725261047872,-1100.3,0.00026575,2]
[336951327,1725261047882,-1392.74,0.00026575,2]
[336951328,1725261047892,-596.01,0.00026575,2]
[336951329,1725261047902,-652.95,0.00026575,2]
[336951330,1725261047912,-500.0,0.00026575,2]
[336951331,1725261047921,-500.0,0.00026575,2]
[336951332,1725261047931,-970.03,0.00026575,2]
[336951333,1725261047942,-1032.57,0.00026575,2]
[336951334,1725261047954,-2241.47,0.00026575,2]
[336951335,1725261047967,-6424.76,0.00026575,2]
[336951336,1725261047976,-922.8,0.00026575,2]
[336951337,1725261047985,-1111.61,0.00026575,2]
[336951338,1725261047995,-500.0,0.00026575,2]
[336951339,1725261048004,-2689.12,0.00026575,2]
[336951340,1725261048014,-500.0,0.00026575,2]
[336951341,1725261048024,-1668.35,0.00026575,2]
[336951342,1725261048034,-1495.1,0.00026575,2]
[336951343,1725261048044,-590.61,0.00026575,2]
[336951344,1725261048054,-326.97637173,0.00026575,2]
[336951345,1725261048064,-2319.6,0.000266,14]
[336951346,1725261048074,-151.0,0.00026671,3]
[336951347,1725261048083,-1006.46370542,0.00026729,2]
[336951348,1725261048094,-3586.23483725,0.0002673,2]
[336951349,1725261048103,-600.0,0.0002673,2]
[336951350,1725261048113,-163.64,0.00026749,7]
[336951351,1725261048122,-164.81,0.00026749,7]
[336951352,1725261048131,-1000.0,0.0002675,2]
[336951353,1725261048141,-249.73821201,0.00026777,2]
[336951354,1725261048150,-1000.0,0.00026779,2]
[336951355,1725261048160,-1000.0,0.00026795,2]
[336951356,1725261048169,-1000.0,0.00026799,2]
[336951357,1725261048178,-1000.0,0.00026825,2]
[336951358,1725261048192,-738.1166993,0.00026835,2]
[336951359,1725261048202,-151.0,0.00026836,3]
[336951360,1725261048211,-1000.0,0.00026846,2]
[336951361,1725261048221,-151.0,0.00026848,7]
[336951362,1725261048231,-500.0,0.00026849,2]
[336951363,1725261048241,-500.0,0.00026849,2]
[336951364,1725261048251,-500.0,0.00026849,2]
[336951365,1725261048261,-500.0,0.00026849,2]
[336951366,1725261048270,-500.0,0.00026849,2]
[336951367,1725261048280,-560.82,0.00026849,2]
[336951368,1725261048289,-320.49323614,0.00026849,2]
[336951369,1725261048634,-179.50676386,0.00026849,2]
[336951370,1725261048643,-500.0,0.00026849,2]
[336951371,1725261048653,-597.59957833,0.00026849,2]
[336951372,1725261048986,-500.0,0.00024657,2]
[336951373,1725261048996,-500.0,0.00024931,2]
[336951374,1725261049006,-207.90042167,0.00026849,2]
[336951375,1725261049016,-602.31,0.00026849,2]
[336951376,1725261049025,-500.0,0.00026849,2]
[336951377,1725261049035,-500.0,0.00026849,2]
[336951378,1725261049044,-500.0,0.00026849,2]
[336951379,1725261049053,-500.0,0.00026849,2]
[336951380,1725261049064,-2550.71,0.00026849,2]
[336951381,1725261049074,-500.0,0.00026849,2]
[336951382,1725261049084,-500.0,0.00026849,2]
[336951383,1725261049093,-514.94,0.00026849,2]
[336951384,1725261049103,-826.3,0.00026849,2]
[336951385,1725261049112,-525.66,0.00026849,2]
[336951386,1725261049122,-500.0,0.00026849,2]
[336951387,1725261049132,-500.0,0.00026849,2]
[336951388,1725261049142,-500.0,0.00026849,2]
[336951389,1725261049152,-597.97,0.00026849,2]
[336951390,1725261049161,-500.0,0.00026849,2]
[336951391,1725261049171,-500.0,0.00026849,2]
[336951392,1725261049181,-864.86,0.00026849,2]
[336951393,1725261049191,-700.25,0.00026849,2]
[336951394,1725261049200,-668.81,0.00026849,2]
[336951395,1725261049213,-602.39,0.00026849,2]
[336951396,1725261049222,-500.0,0.00026849,2]
[336951397,1725261049232,-689.41,0.00026849,2]
[336951398,1725261049242,-500.0,0.00026849,2]
[336951399,1725261049251,-500.0,0.00026849,2]
[336951400,1725261049261,-500.0,0.00026849,2]
[336951401,1725261049270,-500.0,0.00026849,2]
[336951402,1725261049279,-1380.87,0.00026849,2]
[336951403,1725261049290,-500.0,0.00026849,2]
[336951404,1725261049299,-520.65,0.00026849,2]
[336951405,1725261049308,-500.0,0.00026849,2]
[336951406,1725261049318,-823.78,0.00026849,2]
[336951407,1725261049327,-527.21,0.00026849,2]
[336951408,1725261049337,-929.36,0.00026849,2]
[336951409,1725261049346,-950.17,0.00026849,2]
[336951410,1725261049356,-500.0,0.00026849,2]
[336951411,1725261049365,-1343.0,0.00026849,2]
[336951412,1725261049375,-500.0,0.00026849,2]
[336951413,1725261049385,-388.78297183,0.00026849,2]
[336951414,1725261049395,-999.88,0.00026849,2]
[336951415,1725261049404,-500.0,0.00026849,2]
[336951416,1725261049414,-500.0,0.00026849,2]
[336951417,1725261049424,-603.67,0.00026849,2]
[336951418,1725261049433,-1935.93,0.00026849,2]
[336951419,1725261049449,-704.48,0.00026849,2]
[336951420,1725261049463,-3102.51727102,0.00026849,2]
[336951421,1725261049564,-500.0,0.00024657,2]
[336951422,1725261049574,-500.0,0.00024931,2]
[336951423,1725261049584,-500.0,0.00025205,2]
[336951424,1725261049593,-500.0,0.00025479,2]
[336951425,1725261049603,-500.0,0.00025753,2]
[336951426,1725261049612,-500.0,0.00026027,2]
[336951427,1725261049623,-6382.81272898,0.00026849,2]
[336951428,1725261049635,-960.96,0.00026849,2]
[336951429,1725261049645,-500.0,0.00026849,2]
[336951430,1725261049655,-1205.64,0.00026849,2]
[336951431,1725261049665,-500.0,0.00026849,2]
[336951432,1725261049676,-500.0,0.00026849,2]
[336951433,1725261049686,-549.25,0.00026849,2]
[336951434,1725261049696,-1596.2,0.00026849,2]
[336951435,1725261049707,-500.0,0.00026849,2]
[336951436,1725261049717,-2069.72,0.00026849,2]
[336951437,1725261049727,-729.04,0.00026849,2]
[336951438,1725261049737,-783.37,0.00026849,2]
[336951439,1725261049746,-500.0,0.00026849,2]
[336951440,1725261049756,-1246.39,0.00026849,2]
[336951441,1725261049766,-500.0,0.00026849,2]
[336951442,1725261049776,-500.0,0.00026849,2]
[336951443,1725261049785,-1094.2,0.00026849,2]
[336951444,1725261049795,-918.1,0.00026849,2]
[336951445,1725261049804,-1026.81,0.00026849,2]
[336951446,1725261049814,-597.63,0.00026849,2]
[336951447,1725261049823,-1151.54,0.00026849,2]
[336951448,1725261049833,-1257.05,0.00026849,2]
[336951449,1725261049843,-500.0,0.00026849,2]
[336951450,1725261049852,-935.08,0.00026849,2]
[336951451,1725261049861,-1899.94,0.00026849,2]
[336951452,1725261049871,-3722.97,0.00026849,2]
[336951453,1725261049881,-1356.52,0.00026849,2]
[336951454,1725261049891,-500.0,0.00026849,2]
[336951455,1725261049901,-673.9,0.00026849,2]
[336951456,1725261049910,-1004.78,0.00026849,2]
[336951457,1725261049920,-1548.67,0.00026849,2]
[336951458,1725261049929,-500.0,0.00026849,2]
[336951459,1725261049939,-500.0,0.00026849,2]
[336951460,1725261049949,-1196.41,0.00026849,2]
[336951461,1725261049960,-820.74,0.00026849,2]
[336951462,1725261049969,-986.49,0.00026849,2]
[336951463,1725261049979,-989.14,0.00026849,2]
[336951464,1725261049989,-772.1,0.00026849,2]
[336951465,1725261049998,-1070.89,0.00026849,2]
[336951466,1725261050008,-809.06,0.00026849,2]
[336951467,1725261050017,-500.0,0.00026849,2]
[336951468,1725261050027,-1274.85,0.00026849,2]
[336951469,1725261050037,-1621.44,0.00026849,2]
[336951470,1725261050047,-537.71,0.00026849,2]
[336951471,1725261050056,-500.0,0.00026849,2]
[336951472,1725261050066,-500.0,0.00026849,2]
[336951473,1725261050076,-500.0,0.00026849,2]
[336951474,1725261050085,-718.55,0.00026849,2]
[336951475,1725261050095,-5942.41,0.00026849,2]
[336951476,1725261050105,-1295.65,0.00026849,2]
[336951477,1725261050114,-570.39,0.00026849,2]
[336951478,1725261050123,-1140.34,0.00026849,2]
[336951479,1725261050133,-500.0,0.00026849,2]
[336951480,1725261050142,-1150.84,0.00026849,2]
[336951481,1725261050151,-1100.3,0.00026849,2]
[336951482,1725261050161,-1392.74,0.00026849,2]
[336951483,1725261050171,-596.01,0.00026849,2]
[336951484,1725261050180,-652.95,0.00026849,2]
[336951485,1725261050190,-500.0,0.00026849,2]
[336951486,1725261050200,-500.0,0.00026849,2]
[336951487,1725261050209,-970.03,0.00026849,2]
[336951488,1725261050219,-1032.57,0.00026849,2]
[336951489,1725261050229,-2241.47,0.00026849,2]
[336951490,1725261050238,-6424.76,0.00026849,2]
[336951491,1725261050248,-922.8,0.00026849,2]
[336951492,1725261050260,-1111.61,0.00026849,2]
[336951493,1725261050269,-500.0,0.00026849,2]
[336951494,1725261050279,-2689.12,0.00026849,2]
[336951495,1725261050288,-500.0,0.00026849,2]
[336951496,1725261050298,-1668.35,0.00026849,2]
[336951497,1725261050307,-1495.1,0.00026849,2]
[336951498,1725261050317,-590.61,0.00026849,2]
[336951499,1725261050326,-151.0,0.00026863,7]
[336951500,1725261050335,-1000.0,0.00026883,2]
[336951501,1725261050345,-1000.0,0.00026886,2]
[336951502,1725261050355,-1000.0,0.00026889,2]
[336951503,1725261050364,-1000.0,0.0002689,2]
[336951504,1725261050374,-1000.0,0.00026904,2]
[336951505,1725261050383,-1000.0,0.00026914,2]
[336951506,1725261050393,-1000.0,0.00026919,2]
[336951507,1725261050404,-1000.0,0.00026956,2]
[336951508,1725261050415,-1000.0,0.00026966,2]
[336951509,1725261050425,-391.744678,0.00026977,2]
[336951510,1725261050434,-408.10897088,0.00026998,2]
[336951511,1725261050443,-12009.82229254,0.00026998,2]
[336951512,1725261050453,-184.25,0.00026999,2]
[336951513,1725261050462,-184.25,0.00026999,2]
[336951514,1725261050472,-184.25,0.00026999,2]
[336951515,1725261050481,-184.25,0.00026999,2]
[336951516,1725261050490,-77203.44658491,0.00027,3]
[336951517,1725261050500,-5511.8,0.00027,14]
[336951518,1725261050509,-191141.39523317,0.00027,3]
[336951519,1725261050519,-154.67226454,0.00027,120]
[336951520,1725261050529,-186.65259431,0.00027,120]
[336951521,1725261050538,-165.51112066,0.00027,120]
[336951522,1725261050547,-2634.66454248,0.00027,3]
[336951523,1725261050557,-500.0,0.00027,2]
[336951524,1725261050566,-151.0,0.00027,7]
[336951525,1725261050576,-500.0,0.00027,3]
[336951526,1725261050585,-539.52578357,0.00027,3]
[336951527,1725261050595,-151.0,0.00027,7]
[336951528,1725261050604,-251.64996,0.00027,7]
[336951529,1725261050613,-203.693301,0.00027,7]
[336951530,1725261050623,-203.693301,0.00027,7]
[336951531,1725261050636,-151.0,0.00027,4]
[336951532,1725261050646,-917.56988024,0.00027,2]
[336951533,1725261050655,-1003.3,0.00027014,120]
[336951534,1725261050664,-420.0,0.00027122,2]
[336951535,1725261050674,-500.0,0.00027123,2]
[336951536,1725261050684,-500.0,0.00027123,2]
[336951537,1725261050693,-500.0,0.00027123,2]
[336951538,1725261050703,-576.08235039,0.00027123,2]
[336951539,1725261050713,-500.0,0.00027123,2]
[336951540,1725261050723,-588.10352603,0.00027123,2]
[336951541,1725261050732,-500.0,0.00027123,2]
[336951542,1725261050741,-560.82,0.00027123,2]
[336951543,1725261050751,-500.0,0.00027123,2]
[336951544,1725261050760,-500.0,0.00027123,2]
[336951545,1725261050770,-805.5,0.00027123,2]
[336951546,1725261050779,-602.31,0.00027123,2]
[336951547,1725261050788,-500.0,0.00027123,2]
[336951548,1725261050798,-500.0,0.00027123,2]
[336951549,1725261050808,-500.0,0.00027123,2]
[336951550,1725261050817,-500.0,0.00027123,2]
[336951551,1725261050827,-2550.71,0.00027123,2]
[336951552,1725261050836,-500.0,0.00027123,2]
[336951553,1725261050846,-500.0,0.00027123,2]
[336951554,1725261050855,-514.94,0.00027123,2]
[336951555,1725261050865,-826.3,0.00027123,2]
[336951556,1725261050875,-525.66,0.00027123,2]
[336951557,1725261050885,-500.0,0.00027123,2]
[336951558,1725261050895,-500.0,0.00027123,2]
[336951559,1725261050904,-500.0,0.00027123,2]
[336951560,1725261050914,-597.97,0.00027123,2]
[336951561,1725261050922,-500.0,0.00027123,2]
[336951562,1725261050931,-564.86674617,0.00027123,2]
[336951563,1725261050940,-864.86,0.00027123,2]
[336951564,1725261050950,-700.25,0.00027123,2]
[336951565,1725261050959,-668.81,0.00027123,2]
[336951566,1725261050969,-602.39,0.00027123,2]
[336951567,1725261050979,-500.0,0.00027123,2]
[336951568,1725261050988,-689.41,0.00027123,2]